[Event "EYTCC U18 Open 2019"]
[Site "Pardubice"]
[Date "2019.07.15"]
[Round "5.32"]
[White "Vrolijk, Liam"]
[Black "Morgunov, Marc"]
[Result "0-1"]
[ECO "A45"]
[WhiteElo "2478"]
[BlackElo "2314"]
[Annotator "ChessBase"]
[PlyCount "108"]
[EventDate "2019.07.11"]
[EventType "swiss"]
[EventCountry "CZE"]
[SourceTitle "playchess.com"]
[Source "ChessBase"]
[SourceQuality "1"]
[WhiteTeam "Netherlands"]
[BlackTeam "Austria"]
[WhiteTeamCountry "NED"]
[BlackTeamCountry "AUT"]
[TimeControl "40/5400+30:1800+30"]

1. d4 {[%emt 0:00:00]} Nf6 {[%emt 0:00:00]} 2. Bg5 {[%emt 0:00:00]} Ne4 {[%emt 0:00:41]} 3. Bf4 {[%emt 0:00:00]} d5 {[%emt 0:02:34]} 4. e3 {[%emt 0:00:00]} c5 {[%emt 0:04:16]} 5. Bd3 {[%emt 0:00:46]} Nf6 {[%emt 0:07:11]} 6. dxc5 {[%emt 0:01:17]} Nc6 {[%emt 0:03:09]} 7. Nf3 {[%emt 0:02:31]} e6 {[%emt 0:00:56]} 8. O-O {[%emt 0:00:55]} Bxc5 {[%emt 0:01:01]} 9. c4 {[%emt 0:00:50]} dxc4 {[%emt 0:03:45]} 10. Bxc4 {[%emt 0:00:40]} O-O {[%emt 0:02:05]} 11. Nc3 {[%emt 0:06:48]} a6 {[%emt 0:07:26]} 12. Rc1 {[%emt 0:07:27]} Be7 {[%emt 0:16:03]} 13. Bb3 {[%emt 0:11:24]} Qa5 {[%emt 0:04:45]} 14. h3 {[%emt 0:08:05]} Rd8 {[%emt 0:02:39]} 15. Qe2 {[%emt 0:00:48]} Bd7 {[%emt 0:01:44]} 16. e4 {[%emt 0:04:35]} Be8 {[%emt 0:11:30]} 17. e5 {[%emt 0:06:55]} Nd7 {[%emt 0:00:54]} 18. Rcd1 {[%emt 0:12:01]} Nc5 {[%emt 0:03:27]} 19. Bc2 {[%emt 0:00:36]} Qb4 {[%emt 0:02:33]} 20. Be3 {[%emt 0:03:02]} Nd7 {[%emt 0:04:30]} 21. a3 {[%emt 0:03:25]} Qa5 {[%emt 0:00:08]} 22. Bf4 {[%emt 0:00:51]} Rac8 {[%emt 0:01:11]} 23. h4 {[%emt 0:06:18]} Nf8 {[%emt 0:03:36]} 24. h5 {[%emt 0:01:33]} h6 {[%emt 0:01:41]} 25. Ne4 {[%emt 0:02:42]} Qb6 {[%emt 0:03:11]} 26. Nd6 {[%emt 0:04:03]} Bxd6 {[%emt 0:00:25]} 27. exd6 {[%emt 0:00:08]} f6 {[%emt 0:01:40]} 28. Be3 {[%emt 0:04:37]} Qa5 {[%emt 0:00:46]} 29. g4 {[%emt 0:00:59]} Ne5 {[%emt 0:02:15]} 30. Nxe5 {[%emt 0:03:29]} Qxe5 {[%emt 0:00:12]} 31. Rfe1 {[%emt 0:00:20]} Rc6 {[%emt 0:03:59]} 32. f4 {[%emt 0:01:09]} Qa5 {[%emt 0:00:04]} 33. Be4 {[%emt 0:01:44]} Rcxd6 {[%emt 0:00:11]} 34. Rxd6 {[%emt 0:00:41]} Rxd6 {[%emt 0:00:04]} 35. Bxb7 {[%emt 0:01:01]} f5 {[%emt 0:04:34]} 36. Bf3 {[%emt 0:02:39]} fxg4 {[%emt 0:01:07]} 37. Bxg4 {[%emt 0:00:07]} Nh7 {[%emt 0:01:06]} 38. Bf2 {[%emt 0:00:52]} Bf7 {[%emt 0:00:44]} 39. Qe5 {[%emt 0:01:18]} Qd8 {[%emt 0:00:45]} 40. Bf3 {[%emt 0:02:08]} Rd3 {[%emt 0:00:36]} 41. Be4 {[%emt 0:05:25]} Rh3 {[%emt 0:02:30]} 42. Bg6 {[%emt 0:02:48]} Qe8 {[%emt 0:12:49]} 43. f5 {[%emt 0:05:46]} Ng5 {[%emt 0:01:45]} 44. Re3 {[%emt 0:08:01]} Bxg6 {[%emt 0:03:22]} 45. hxg6 {[%emt 0:03:15]} Nf3+ {[%emt 0:01:16]} 46. Rxf3 {[%emt 0:00:07]} Rxf3 {[%emt 0:00:03]} 47. Bd4 {[%emt 0:02:06]} Qe7 {[%emt 0:02:56]} 48. fxe6 {[%emt 0:00:18]} Rf6 {[%emt 0:00:43]} 49. Qb8+ {[%emt 0:00:08]} Rf8 {[%emt 0:00:05]} 50. Qe5 {[%emt 0:00:15]} Re8 {[%emt 0:00:10]} 51. b4 {[%emt 0:01:49]} Qg5+ {[%emt 0:03:29]} 52. Qxg5 {[%emt 0:00:07]} hxg5 {[%emt 0:00:03]} 53. a4 {[%emt 0:00:07]} Rxe6 {[%emt 0:00:05]} 54. b5 {[%emt 0:00:05]} Re4 {[%emt 0:00:25]} 0-1

[Event "EYTCC U18 Open 2019"]
[Site "Pardubice"]
[Date "2019.07.15"]
[Round "5.33"]
[White "Zarubitski, Viachaslau"]
[Black "Ivic, Velimir"]
[Result "1-0"]
[ECO "B51"]
[WhiteElo "2424"]
[BlackElo "2510"]
[Annotator "ChessBase"]
[PlyCount "99"]
[EventDate "2019.07.11"]
[EventType "swiss"]
[EventCountry "CZE"]
[SourceTitle "playchess.com"]
[Source "ChessBase"]
[SourceQuality "1"]
[WhiteTeam "Belarus"]
[BlackTeam "Serbia"]
[WhiteTeamCountry "BLR"]
[BlackTeamCountry "SRB"]
[TimeControl "40/5400+30:1800+30"]

1. e4 {[%emt 0:00:00]} c5 {[%emt 0:00:00]} 2. Nf3 {[%emt 0:00:00]} d6 {[%emt 0:00:00]} 3. Bb5+ {[%emt 0:00:00]} Nd7 {[%emt 0:00:00]} 4. d4 {[%emt 0:00:00]} cxd4 {[%emt 0:00:08]} 5. Qxd4 {[%emt 0:00:00]} a6 {[%emt 0:00:05]} 6. Bxd7+ {[%emt 0:00:02]} Bxd7 {[%emt 0:00:05]} 7. Nc3 {[%emt 0:00:05]} e5 {[%emt 0:00:34]} 8. Qd3 {[%emt 0:00:03]} Rc8 {[%emt 0:00:04]} 9. O-O {[%emt 0:00:28]} h6 {[%emt 0:00:19]} 10. Nd2 {[%emt 0:00:22]} Nf6 {[%emt 0:00:40]} 11. Nc4 {[%emt 0:00:19]} Be6 {[%emt 0:00:16]} 12. Ne3 {[%emt 0:00:05]} Be7 {[%emt 0:00:12]} 13. Rd1 {[%emt 0:00:35]} O-O {[%emt 0:00:23]} 14. Bd2 {[%emt 0:00:21]} Qb6 {[%emt 0:08:46]} 15. a4 {[%emt 0:00:41]} Rfe8 {[%emt 0:14:17]} 16. Be1 {[%emt 0:03:38]} Qc6 {[%emt 0:22:15]} 17. f3 {[%emt 0:05:17]} Bc4 {[%emt 0:07:22]} 18. Nxc4 {[%emt 0:01:46]} Qxc4 {[%emt 0:00:07]} 19. Qxc4 {[%emt 0:00:05]} Rxc4 {[%emt 0:00:04]} 20. Kf1 {[%emt 0:17:54]} Rec8 {[%emt 0:02:46]} 21. Rd2 {[%emt 0:09:40]} Kf8 {[%emt 0:02:14]} 22. Nd1 {[%emt 0:02:22]} Nd7 {[%emt 0:23:07]} 23. Ne3 {[%emt 0:05:02]} R4c6 {[%emt 0:00:05]} 24. h4 {[%emt 0:02:01]} g6 {[%emt 0:02:23]} 25. a5 {[%emt 0:13:57]} Ke8 {[%emt 0:07:25]} 26. b3 {[%emt 0:01:30]} Nf8 {[%emt 0:05:21]} 27. Nc4 {[%emt 0:01:25]} Ne6 {[%emt 0:00:27]} 28. Bf2 {[%emt 0:01:02]} f5 {[%emt 0:00:55]} 29. Rad1 {[%emt 0:04:41]} Rxc4 {[%emt 0:00:19]} 30. bxc4 {[%emt 0:00:05]} Rxc4 {[%emt 0:00:06]} 31. exf5 {[%emt 0:07:54]} gxf5 {[%emt 0:00:01]} 32. Rb1 {[%emt 0:00:06]} Nd8 {[%emt 0:01:02]} 33. g3 {[%emt 0:00:25]} h5 {[%emt 0:01:18]} 34. Be3 {[%emt 0:00:41]} Ra4 {[%emt 0:01:20]} 35. Bg5 {[%emt 0:02:41]} Rxa5 {[%emt 0:00:59]} 36. Rb6 {[%emt 0:00:15]} d5 {[%emt 0:01:49]} 37. Rh6 {[%emt 0:01:10]} Nf7 {[%emt 0:00:20]} 38. Rxh5 {[%emt 0:00:05]} Bb4 {[%emt 0:00:11]} 39. Re2 {[%emt 0:00:18]} Ra3 {[%emt 0:01:02]} 40. Kg2 {[%emt 0:00:39]} Kd7 {[%emt 0:00:37]} 41. Bc1 {[%emt 0:37:50]} Ra2 {[%emt 0:06:42]} 42. Rxf5 {[%emt 0:00:00]} Ke6 {[%emt 0:00:02]} 43. g4 {[%emt 0:00:00]} d4 {[%emt 0:00:08]} 44. Bg5 {[%emt 0:00:00]} d3 {[%emt 0:03:07]} 45. Rf6+ {[%emt 0:00:00]} Ke7 {[%emt 0:04:38]} 46. Rxe5+ {[%emt 0:00:00]} Nxe5 {[%emt 0:01:04]} 47. Rxa6+ {[%emt 0:00:00]} Kd7 {[%emt 0:01:08]} 48. Rxa2 {[%emt 0:00:00]} d2 {[%emt 0:00:03]} 49. Ra1 {[%emt 0:00:00]} Nc4 {[%emt 0:00:04]} 50. Kf1 {[%emt 0:00:00]} 1-0

[Event "EYTCC U18 Open 2019"]
[Site "Pardubice"]
[Date "2019.07.15"]
[Round "5.34"]
[White "Radovanovic, Mihajlo"]
[Black "BADELKA, Olga"]
[Result "1/2-1/2"]
[ECO "E12"]
[WhiteElo "2500"]
[BlackElo "2386"]
[Annotator "ChessBase"]
[PlyCount "88"]
[EventDate "2019.07.11"]
[EventType "swiss"]
[EventCountry "CZE"]
[SourceTitle "playchess.com"]
[Source "ChessBase"]
[SourceQuality "1"]
[WhiteTeam "Serbia"]
[WhiteTeamCountry "SRB"]
[TimeControl "40/5400+30:1800+30"]

1. d4 {[%emt 0:00:00]} Nf6 {[%emt 0:00:00]} 2. c4 {[%emt 0:00:00]} e6 {[%emt 0:00:00]} 3. Nf3 {[%emt 0:00:00]} b6 {[%emt 0:00:06]} 4. a3 {[%emt 0:00:08]} Bb7 {[%emt 0:00:13]} 5. Nc3 {[%emt 0:00:04]} g6 {[%emt 0:00:26]} 6. Qc2 {[%emt 0:02:46]} Bg7 {[%emt 0:00:19]} 7. e4 {[%emt 0:01:26]} d6 {[%emt 0:00:14]} 8. Be2 {[%emt 0:02:04]} O-O {[%emt 0:00:33]} 9. O-O {[%emt 0:00:46]} Nbd7 {[%emt 0:00:10]} 10. h3 {[%emt 0:04:05]} c5 {[%emt 0:00:17]} 11. d5 {[%emt 0:00:32]} a6 {[%emt 0:06:49]} 12. Rd1 {[%emt 0:08:24]} exd5 {[%emt 0:01:31]} 13. exd5 {[%emt 0:00:14]} Re8 {[%emt 0:15:48]} 14. a4 {[%emt 0:02:20]} Nh5 {[%emt 0:04:48]} 15. g4 {[%emt 0:12:09]} Nhf6 {[%emt 0:01:07]} 16. Bf4 {[%emt 0:02:23]} Qc7 {[%emt 0:02:39]} 17. Bd3 {[%emt 0:02:31]} h5 {[%emt 0:02:06]} 18. g5 {[%emt 0:01:49]} Nh7 {[%emt 0:00:07]} 19. a5 {[%emt 0:01:49]} Ne5 {[%emt 0:04:18]} 20. Nxe5 {[%emt 0:02:58]} Bxe5 {[%emt 0:00:07]} 21. Bxe5 {[%emt 0:03:56]} Rxe5 {[%emt 0:00:07]} 22. f4 {[%emt 0:00:19]} Re3 {[%emt 0:02:55]} 23. Qf2 {[%emt 0:09:56]} Rae8 {[%emt 0:02:41]} 24. Re1 {[%emt 0:03:17]} Rxe1+ {[%emt 0:04:48]} 25. Rxe1 {[%emt 0:00:34]} Rxe1+ {[%emt 0:00:34]} 26. Qxe1 {[%emt 0:00:05]} bxa5 {[%emt 0:01:40]} 27. Qe3 {[%emt 0:14:09]} Bc8 {[%emt 0:03:24]} 28. Ne2 {[%emt 0:00:31]} Kf8 {[%emt 0:09:55]} 29. f5 {[%emt 0:07:14]} Bxf5 {[%emt 0:07:23]} 30. Bxf5 {[%emt 0:00:09]} gxf5 {[%emt 0:00:04]} 31. Ng3 {[%emt 0:00:51]} Qe7 {[%emt 0:25:48]} 32. Qxe7+ {[%emt 0:01:17]} Kxe7 {[%emt 0:00:03]} 33. h4 {[%emt 0:01:54]} Nf8 {[%emt 0:00:38]} 34. Nxf5+ {[%emt 0:00:10]} Kd7 {[%emt 0:00:03]} 35. Kg2 {[%emt 0:01:24]} Ng6 {[%emt 0:00:04]} 36. Kg3 {[%emt 0:00:04]} Ne5 {[%emt 0:00:33]} 37. Ng7 {[%emt 0:01:02]} Nxc4 {[%emt 0:00:39]} 38. Nxh5 {[%emt 0:00:07]} Nxb2 {[%emt 0:00:24]} 39. Nf6+ {[%emt 0:00:06]} Ke7 {[%emt 0:04:29]} 40. h5 {[%emt 0:00:08]} Nd3 {[%emt 0:00:26]} 41. h6 {[%emt 0:36:28]} Ne5 {[%emt 0:02:25]} 42. Ng4 {[%emt 0:00:00]} Ng6 {[%emt 0:00:41]} 43. Ne3 {[%emt 0:00:00]} a4 {[%emt 0:05:43]} 44. Nc4 {[%emt 0:00:00]} Nh8 {[%emt 0:11:56]} 1/2-1/2

[Event "EYTCC U18 Open 2019"]
[Site "Pardubice"]
[Date "2019.07.15"]
[Round "5.35"]
[White "Tsaruk, Maksim"]
[Black "Budisavljevic, Luka"]
[Result "1-0"]
[ECO "B41"]
[WhiteElo "2230"]
[BlackElo "2351"]
[Annotator "ChessBase"]
[PlyCount "153"]
[EventDate "2019.07.11"]
[EventType "swiss"]
[EventCountry "CZE"]
[SourceTitle "playchess.com"]
[Source "ChessBase"]
[SourceQuality "1"]
[WhiteTeam "Belarus"]
[BlackTeam "Serbia"]
[WhiteTeamCountry "BLR"]
[BlackTeamCountry "SRB"]
[TimeControl "40/5400+30:1800+30"]

1. e4 {[%emt 0:00:00]} c5 {[%emt 0:00:00]} 2. Nf3 {[%emt 0:00:00]} e6 {[%emt 0:00:00]} 3. d4 {[%emt 0:00:00]} cxd4 {[%emt 0:00:00]} 4. Nxd4 {[%emt 0:00:00]} a6 {[%emt 0:00:00]} 5. c4 {[%emt 0:00:11]} Nf6 {[%emt 0:00:00]} 6. Nc3 {[%emt 0:00:11]} Qc7 {[%emt 0:00:00]} 7. a3 {[%emt 0:00:11]} b6 {[%emt 0:00:00]} 8. Be3 {[%emt 0:00:13]} Bb7 {[%emt 0:00:00]} 9. f3 {[%emt 0:00:10]} Be7 {[%emt 0:00:00]} 10. Rc1 {[%emt 0:00:36]} O-O {[%emt 0:00:08]} 11. Be2 {[%emt 0:00:04]} d6 {[%emt 0:00:05]} 12. O-O {[%emt 0:00:13]} Nbd7 {[%emt 0:00:01]} 13. b4 {[%emt 0:00:41]} Rac8 {[%emt 0:00:10]} 14. Qd2 {[%emt 0:04:32]} Qb8 {[%emt 0:00:05]} 15. Kh1 {[%emt 0:00:31]} Rfe8 {[%emt 0:00:34]} 16. Nb3 {[%emt 0:01:54]} Ne5 {[%emt 0:01:11]} 17. Na4 {[%emt 0:09:16]} Nfd7 {[%emt 0:00:05]} 18. Nd4 {[%emt 0:10:56]} h5 {[%emt 0:20:32]} 19. Bg5 {[%emt 0:27:44]} Bf8 {[%emt 0:04:03]} 20. Rfd1 {[%emt 0:03:18]} Ng6 {[%emt 0:08:10]} 21. Bf1 {[%emt 0:02:50]} Ba8 {[%emt 0:09:31]} 22. Qf2 {[%emt 0:04:14]} d5 {[%emt 0:23:03]} 23. cxd5 {[%emt 0:08:42]} exd5 {[%emt 0:00:17]} 24. exd5 {[%emt 0:00:23]} Rxc1 {[%emt 0:02:12]} 25. Bxc1 {[%emt 0:02:44]} Bxd5 {[%emt 0:04:33]} 26. Bxa6 {[%emt 0:00:24]} Nf6 {[%emt 0:00:28]} 27. Nc3 {[%emt 0:08:33]} Ba8 {[%emt 0:00:17]} 28. Bb5 {[%emt 0:05:24]} Rc8 {[%emt 0:01:44]} 29. Nce2 {[%emt 0:00:11]} Bd6 {[%emt 0:08:19]} 30. h3 {[%emt 0:02:11]} Be5 {[%emt 0:01:15]} 31. Nf5 {[%emt 0:01:35]} Rd8 {[%emt 0:02:29]} 32. Rxd8+ {[%emt 0:04:03]} Qxd8 {[%emt 0:00:00]} 33. Be3 {[%emt 0:00:19]} Qd5 {[%emt 0:04:23]} 34. a4 {[%emt 0:00:26]} Bc7 {[%emt 0:03:52]} 35. Ned4 {[%emt 0:02:52]} Qe5 {[%emt 0:00:36]} 36. Kg1 {[%emt 0:00:58]} Nd5 {[%emt 0:05:34]} 37. Bd2 {[%emt 0:00:05]} Qh2+ {[%emt 0:03:49]} 38. Kf1 {[%emt 0:00:04]} Bf4 {[%emt 0:00:09]} 39. Be1 {[%emt 0:00:55]} Be5 {[%emt 0:01:11]} 40. Ne2 {[%emt 0:01:31]} Bb8 {[%emt 0:00:36]} 41. Qd4 {[%emt 0:06:50]} Nf6 {[%emt 0:20:16]} 42. Neg3 {[%emt 0:15:11]} Nf4 {[%emt 0:09:05]} 43. Qg1 {[%emt 0:00:18]} Qxg1+ {[%emt 0:00:02]} 44. Kxg1 {[%emt 0:00:10]} g6 {[%emt 0:01:50]} 45. Ne3 {[%emt 0:02:26]} Be5 {[%emt 0:00:58]} 46. Ne2 {[%emt 0:02:20]} Ne6 {[%emt 0:00:45]} 47. Nc4 {[%emt 0:00:25]} Bc7 {[%emt 0:00:07]} 48. Nc3 {[%emt 0:00:58]} Nd4 {[%emt 0:01:00]} 49. Bf2 {[%emt 0:00:36]} Nc2 {[%emt 0:00:11]} 50. Nxb6 {[%emt 0:03:05]} Bxb6 {[%emt 0:00:11]} 51. Bxb6 {[%emt 0:00:03]} Nxb4 {[%emt 0:00:01]} 52. Bd4 {[%emt 0:01:18]} Nfd5 {[%emt 0:00:10]} 53. Nxd5 {[%emt 0:00:08]} Nxd5 {[%emt 0:00:48]} 54. a5 {[%emt 0:00:06]} Nc7 {[%emt 0:00:23]} 55. Bc4 {[%emt 0:00:04]} Bb7 {[%emt 0:00:30]} 56. h4 {[%emt 0:00:05]} Ba6 {[%emt 0:01:22]} 57. Bxa6 {[%emt 0:03:35]} Nxa6 {[%emt 0:00:01]} 58. Kf2 {[%emt 0:00:07]} Kf8 {[%emt 0:00:21]} 59. Ke3 {[%emt 0:00:10]} Ke7 {[%emt 0:00:09]} 60. Bb2 {[%emt 0:00:15]} Ke6 {[%emt 0:01:11]} 61. Kd4 {[%emt 0:00:14]} Kd6 {[%emt 0:00:28]} 62. Ba3+ {[%emt 0:00:04]} Ke6 {[%emt 0:01:15]} 63. Kc4 {[%emt 0:00:06]} Kd7 {[%emt 0:00:23]} 64. Kd5 {[%emt 0:01:23]} Nc7+ {[%emt 0:00:33]} 65. Ke5 {[%emt 0:00:04]} Ne8 {[%emt 0:00:27]} 66. a6 {[%emt 0:01:30]} Kc6 {[%emt 0:00:27]} 67. a7 {[%emt 0:00:09]} Kb7 68. Bc5 {[%emt 0:00:09]} Ka8 {[%emt 0:00:48]} 69. Bf2 {[%emt 0:01:36]} Kb7 {[%emt 0:00:05]} 70. Kd5 {[%emt 0:00:07]} Nf6+ {[%emt 0:00:32]} 71. Kd6 {[%emt 0:00:07]} Ng8 {[%emt 0:01:17]} 72. Kd7 {[%emt 0:00:09]} f6 {[%emt 0:00:19]} 73. Ke6 {[%emt 0:00:06]} g5 {[%emt 0:00:02]} 74. Kf7 {[%emt 0:00:31]} Nh6+ {[%emt 0:00:26]} 75. Kg7 {[%emt 0:00:20]} Nf5+ {[%emt 0:00:24]} 76. Kxf6 {[%emt 0:00:05]} Nxh4 {[%emt 0:00:22]} 77. Bxh4 {[%emt 0:00:04]} 1-0

[Event "EYTCC U18 Open 2019"]
[Site "Pardubice"]
[Date "2019.07.15"]
[Round "5.36"]
[White "Omorjan, Dejan"]
[Black "Runets, Ivan"]
[Result "0-1"]
[ECO "A46"]
[WhiteElo "2317"]
[BlackElo "2239"]
[Annotator "NA"]
[PlyCount "116"]
[EventDate "2019.07.11"]
[EventType "swiss"]
[EventCountry "CZE"]
[SourceTitle "playchess.com"]
[Source "ChessBase"]
[SourceQuality "1"]
[WhiteTeam "Serbia"]
[BlackTeam "Belarus"]
[WhiteTeamCountry "SRB"]
[BlackTeamCountry "BLR"]
[TimeControl "40/5400+30:1800+30"]

1. d4 {[%emt 0:00:00]} Nf6 {[%emt 0:00:53]} 2. Nf3 {[%emt 0:00:00]} e6 {[%emt 0:00:08]} 3. Bf4 {[%emt 0:00:00]} b6 {[%emt 0:04:04]} 4. e3 {[%emt 0:02:47]} Bb7 {[%emt 0:00:06]} 5. c4 {[%emt 0:01:43]} Be7 {[%emt 0:00:34]} 6. Nc3 {[%emt 0:02:34]} Nh5 {[%emt 0:04:38]} 7. Bg3 {[%emt 0:02:00]} d6 {[%emt 0:01:20]} 8. Qc2 {[%emt 0:06:35]} Nd7 {[%emt 0:06:26]} 9. Rd1 {[%emt 0:08:43]} h6 {[%emt 0:00:25]} 10. b4 {[%emt 0:09:05]} O-O {[%emt 0:07:45]} 11. c5 {[%emt 0:07:04]} bxc5 {[%emt 0:06:38]} 12. bxc5 {[%emt 0:03:43]} Qc8 {[%emt 0:03:15]} 13. Be2 {[%emt 0:07:28]} a6 {[%emt 0:06:15]} 14. O-O {[%emt 0:05:19]} Nxg3 {[%emt 0:00:26]} 15. hxg3 {[%emt 0:02:53]} dxc5 {[%emt 0:00:13]} 16. d5 {[%emt 0:01:14]} exd5 {[%emt 0:00:06]} 17. Nxd5 {[%emt 0:01:09]} Bxd5 {[%emt 0:05:29]} 18. Rxd5 {[%emt 0:00:16]} Nb6 {[%emt 0:00:11]} 19. Re5 {[%emt 0:05:28]} Bd6 {[%emt 0:09:52]} 20. Rh5 {[%emt 0:01:12]} Re8 {[%emt 0:01:10]} 21. Bd3 {[%emt 0:06:23]} Qe6 {[%emt 0:01:23]} 22. Nd2 {[%emt 0:04:33]} a5 {[%emt 0:02:44]} 23. Nc4 {[%emt 0:07:21]} Nd5 {[%emt 0:07:46]} 24. Bf5 {[%emt 0:02:53]} Nb4 {[%emt 0:05:21]} 25. Bxe6 {[%emt 0:00:55]} Nxc2 {[%emt 0:00:17]} 26. Bd5 {[%emt 0:00:59]} Rad8 {[%emt 0:11:23]} 27. a3 {[%emt 0:03:00]} g6 {[%emt 0:00:12]} 28. Rh3 {[%emt 0:01:39]} Bf8 {[%emt 0:03:58]} 29. Bc6 {[%emt 0:03:02]} Re6 {[%emt 0:00:04]} 30. Ba4 {[%emt 0:01:40]} Re4 {[%emt 0:00:28]} 31. Bb3 {[%emt 0:03:12]} a4 {[%emt 0:01:25]} 32. f3 {[%emt 0:00:34]} Nxe3 {[%emt 0:02:40]} 33. Nxe3 {[%emt 0:00:32]} Rxe3 {[%emt 0:00:05]} 34. Bxa4 {[%emt 0:00:05]} Rxa3 {[%emt 0:00:04]} 35. Bb5 {[%emt 0:00:23]} Rb3 {[%emt 0:02:22]} 36. Bc4 {[%emt 0:00:33]} Rb4 {[%emt 0:00:09]} 37. Rc1 {[%emt 0:00:41]} Rd2 {[%emt 0:00:47]} 38. Rh4 {[%emt 0:00:33]} Rd4 {[%emt 0:00:47]} 39. Re4 {[%emt 0:00:41]} Kg7 {[%emt 0:00:30]} 40. g4 {[%emt 0:00:31]} Bd6 {[%emt 0:01:33]} 41. Kf2 {[%emt 0:06:26]} f5 {[%emt 0:03:23]} 42. gxf5 {[%emt 0:00:24]} gxf5 {[%emt 0:00:09]} 43. Rxd4 {[%emt 0:00:14]} cxd4 {[%emt 0:00:05]} 44. Bd3 {[%emt 0:04:52]} Kf6 {[%emt 0:03:07]} 45. g4 {[%emt 0:02:48]} Rb2+ {[%emt 0:05:09]} 46. Rc2 {[%emt 0:05:14]} Rxc2+ {[%emt 0:01:46]} 47. Bxc2 {[%emt 0:00:04]} fxg4 {[%emt 0:01:50]} 48. fxg4 {[%emt 0:00:11]} c5 {[%emt 0:01:25]} 49. Bb3 {[%emt 0:03:29]} Ke5 {[%emt 0:00:09]} 50. Ke2 {[%emt 0:02:49]} Ke4 {[%emt 0:00:39]} 51. Bc4 {[%emt 0:00:27]} Be7 {[%emt 0:00:20]} 52. Bb5 {[%emt 0:04:52]} Kf4 {[%emt 0:00:27]} 53. Bd7 {[%emt 0:00:51]} c4 {[%emt 0:05:00]} 54. Bb5 {[%emt 0:02:02]} c3 {[%emt 0:00:10]} 55. Bd7 {[%emt 0:01:33]} c2 {[%emt 0:00:01]} 56. Kd2 {[%emt 0:00:12]} d3 {[%emt 0:00:02]} 57. Bf5 {[%emt 0:00:25]} Bb4+ {[%emt 0:00:02]} 58. Kc1 {[%emt 0:00:13]} Ba3+ {[%emt 0:00:03]} 0-1

[Event "EYTCC U18 Open 2019"]
[Site "Pardubice"]
[Date "2019.07.16"]
[Round "6.1"]
[White "Erenberg, Ariel"]
[Black "Ivic, Velimir"]
[Result "1/2-1/2"]
[ECO "A05"]
[WhiteElo "2442"]
[BlackElo "2510"]
[Annotator "ChessBase"]
[PlyCount "61"]
[EventDate "2019.07.11"]
[EventType "swiss"]
[EventCountry "CZE"]
[SourceTitle "playchess.com"]
[Source "ChessBase"]
[SourceQuality "1"]
[WhiteTeam "Israel"]
[BlackTeam "Serbia"]
[WhiteTeamCountry "ISR"]
[BlackTeamCountry "SRB"]
[TimeControl "40/5400+30:1800+30"]

1. Nf3 {[%emt 0:00:00]} Nf6 {[%emt 0:00:00]} 2. c4 {[%emt 0:00:00]} g6 {[%emt 0:00:00]} 3. Nc3 {[%emt 0:00:00]} Bg7 {[%emt 0:00:00]} 4. e4 {[%emt 0:00:57]} e5 {[%emt 0:03:48]} 5. d4 {[%emt 0:21:05]} exd4 {[%emt 0:00:27]} 6. Nxd4 {[%emt 0:00:06]} O-O {[%emt 0:01:11]} 7. Be3 {[%emt 0:01:14]} Re8 {[%emt 0:06:30]} 8. Bd3 {[%emt 0:00:47]} c6 {[%emt 0:15:22]} 9. O-O {[%emt 0:00:21]} d5 {[%emt 0:05:52]} 10. cxd5 {[%emt 0:04:09]} cxd5 {[%emt 0:01:03]} 11. exd5 {[%emt 0:00:21]} Nxd5 {[%emt 0:01:39]} 12. Nxd5 {[%emt 0:00:13]} Qxd5 {[%emt 0:00:10]} 13. Be2 {[%emt 0:05:33]} a6 {[%emt 0:15:53]} 14. Bf3 {[%emt 0:18:24]} Qd6 {[%emt 0:04:01]} 15. Rc1 {[%emt 0:02:59]} Nd7 {[%emt 0:00:51]} 16. Qa4 {[%emt 0:01:44]} Nf6 {[%emt 0:11:07]} 17. h3 {[%emt 0:20:22]} Bd7 {[%emt 0:15:11]} 18. Qb3 {[%emt 0:01:09]} Rac8 {[%emt 0:04:31]} 19. Rxc8 {[%emt 0:04:10]} Bxc8 {[%emt 0:01:25]} 20. Rd1 {[%emt 0:01:16]} Qe7 {[%emt 0:01:39]} 21. Ne2 {[%emt 0:05:25]} b5 {[%emt 0:00:54]} 22. Nf4 {[%emt 0:00:38]} Bb7 {[%emt 0:01:08]} 23. Bxb7 {[%emt 0:00:28]} Qxb7 {[%emt 0:00:05]} 24. a4 {[%emt 0:00:12]} Qc6 {[%emt 0:02:08]} 25. axb5 {[%emt 0:00:28]} Qxb5 {[%emt 0:00:28]} 26. Qxb5 {[%emt 0:00:45]} axb5 {[%emt 0:00:02]} 27. Nd5 {[%emt 0:00:43]} Nxd5 {[%emt 0:00:09]} 28. Rxd5 {[%emt 0:00:06]} Bxb2 {[%emt 0:00:05]} 29. Rxb5 {[%emt 0:00:29]} Bc1 {[%emt 0:00:06]} 30. Bxc1 {[%emt 0:01:19]} Re1+ {[%emt 0:00:04]} 31. Kh2 {[%emt 0:00:30]} 1/2-1/2

[Event "EYTCC U18 Open 2019"]
[Site "Pardubice"]
[Date "2019.07.16"]
[Round "6.2"]
[White "Radovanovic, Mihajlo"]
[Black "Bronstein, Or"]
[Result "1-0"]
[ECO "A00"]
[WhiteElo "2500"]
[BlackElo "2378"]
[Annotator "ChessBase"]
[PlyCount "67"]
[EventDate "2019.07.11"]
[EventType "swiss"]
[EventCountry "CZE"]
[SourceTitle "playchess.com"]
[Source "ChessBase"]
[SourceQuality "1"]
[WhiteTeam "Serbia"]
[BlackTeam "Israel"]
[WhiteTeamCountry "SRB"]
[BlackTeamCountry "ISR"]
[TimeControl "40/5400+30:1800+30"]

1. g3 {[%emt 0:00:00]} c5 {[%emt 0:02:51]} 2. Bg2 {[%emt 0:00:00]} g6 {[%emt 0:00:40]} 3. d3 {[%emt 0:00:39]} Bg7 {[%emt 0:00:32]} 4. e4 {[%emt 0:00:18]} Nc6 {[%emt 0:00:13]} 5. f4 {[%emt 0:00:08]} d6 {[%emt 0:00:27]} 6. Nf3 {[%emt 0:00:06]} Nf6 {[%emt 0:02:14]} 7. O-O {[%emt 0:00:23]} O-O {[%emt 0:00:11]} 8. Nc3 {[%emt 0:02:26]} Rb8 {[%emt 0:00:39]} 9. a4 {[%emt 0:00:36]} a6 {[%emt 0:02:06]} 10. h3 {[%emt 0:00:26]} b5 {[%emt 0:00:08]} 11. axb5 {[%emt 0:00:07]} axb5 {[%emt 0:00:02]} 12. g4 {[%emt 0:01:56]} b4 {[%emt 0:00:46]} 13. Ne2 {[%emt 0:00:06]} Nd7 {[%emt 0:03:03]} 14. Qe1 {[%emt 0:06:56]} Bb7 {[%emt 0:01:39]} 15. h4 {[%emt 0:16:12]} Qb6 {[%emt 0:07:18]} 16. Be3 {[%emt 0:07:54]} Bxb2 {[%emt 0:03:22]} 17. Rb1 {[%emt 0:00:23]} Bg7 {[%emt 0:05:42]} 18. h5 {[%emt 0:00:05]} Ra8 {[%emt 0:00:34]} 19. hxg6 {[%emt 0:04:56]} hxg6 {[%emt 0:00:55]} 20. Qh4 {[%emt 0:01:12]} Rfe8 {[%emt 0:16:38]} 21. Ng5 {[%emt 0:10:59]} Nf6 {[%emt 0:02:33]} 22. e5 {[%emt 0:07:12]} dxe5 {[%emt 0:01:21]} 23. Bd5 {[%emt 0:00:25]} e6 {[%emt 0:24:39]} 24. fxe5 {[%emt 0:09:47]} Nxe5 {[%emt 0:00:02]} 25. Bxb7 {[%emt 0:03:18]} Qxb7 {[%emt 0:00:11]} 26. Rxf6 {[%emt 0:00:33]} Bxf6 {[%emt 0:00:42]} 27. Qh7+ {[%emt 0:00:09]} Kf8 {[%emt 0:00:03]} 28. Bxc5+ {[%emt 0:00:10]} Re7 {[%emt 0:00:07]} 29. Rf1 {[%emt 0:03:23]} Ke8 {[%emt 0:12:53]} 30. Ne4 {[%emt 0:00:49]} Qc6 {[%emt 0:04:35]} 31. Nd4 {[%emt 0:03:31]} Nf3+ {[%emt 0:00:49]} 32. Nxf3 {[%emt 0:00:14]} Bb2 {[%emt 0:00:39]} 33. Bxe7 {[%emt 0:01:25]} Kxe7 {[%emt 0:00:09]} 34. Qxf7+ {[%emt 0:00:41]} 1-0